fUSD/lending_fUSD_20260630
["ID","MTS","AMOUNT","RATE_DAILY","PERIOD"]
[426738156,1782769840000,-171.0,0.00023,2]
[426738163,1782769840000,-348.19907659,0.00023444,2]
[426738164,1782769840000,-162.62997506,0.000236,2]
[426738158,1782769840000,-350.0,0.00023,2]
[426738200,1782769840000,-306.9171899,0.00024856,2]
[426738155,1782769840000,-501.0,0.00022831,8]
[426738157,1782769840000,-235.0,0.00023,2]
[426738161,1782769840000,-150.0,0.00023014,2]
[426738167,1782769840000,-176.01712076,0.000236,2]
[426738176,1782769840000,-190.83539254,0.00023608,2]
[426738196,1782769840000,-185.88081107,0.00024856,2]
[426738172,1782769840000,-161.51634641,0.00023608,2]
[426738197,1782769840000,-168.51847822,0.00024856,2]
[426738234,1782769840000,-189.03591861,0.00025693,2]
[426738232,1782769840000,-337.03695644,0.00025693,2]
[426738237,1782769840000,-288.98535364,0.00025693,2]
[426738235,1782769840000,-258.12766092,0.00025693,2]
[426738238,1782769840000,-166.57269421,0.00025693,2]
[426738236,1782769840000,-201.44958847,0.00025693,2]
[426738239,1782769840000,-570.66971116,0.00025693,2]
[426738242,1782769840000,-206.31566651,0.00025693,2]
[426738244,1782769840000,-201.05606011,0.00025693,2]
[426738252,1782769840000,-484.54903922,0.00025701,2]
[426738243,1782769840000,-192.17519792,0.00025693,2]
[426738241,1782769840000,-528.05136228,0.00025693,2]
[426738245,1782769840000,-460.37578485,0.00025693,2]
[426738246,1782769840000,-247.48824862,0.00025701,2]
[426738248,1782769840000,-263.3915584,0.00025701,2]
[426738250,1782769840000,-570.65777909,0.00025701,2]
[426738247,1782769840000,-287.77049428,0.00025701,2]
[426738251,1782769840000,-214.59662272,0.00025701,2]
[426738249,1782769840000,-283.4556012,0.00025701,2]
[426738253,1782769840000,-260.6476585,0.00025701,2]
[426738257,1782769840000,-532.1924261,0.00025701,2]
[426738256,1782769840000,-258.87614716,0.00025701,2]
[426738255,1782769840000,-239.58028026,0.00025701,2]
[426738260,1782769840000,-430.09045578,0.00025701,2]
[426738258,1782769840000,-492.58727224,0.00025701,2]
[426738198,1782769840000,-380.44647411,0.00024856,2]
[426738259,1782769840000,-528.385815,0.00025701,2]
[426738240,1782769840000,-287.50508104,0.00025693,2]
[426738233,1782769840000,-260.75229345,0.00025693,2]
[426738254,1782769840000,-265.75231931,0.00025701,2]
[426738230,1782769840000,-487.88992519,0.00025693,2]
[426738231,1782769840000,-371.76162214,0.00025693,2]
[426738201,1782769840000,-166.16496314,0.00024864,2]
[426738211,1782769840000,-151.84448786,0.00024864,2]
[426738206,1782769840000,-328.39151483,0.00024864,2]
[426738209,1782769840000,-167.24996159,0.00024864,2]
[426738208,1782769840000,-215.04522789,0.00024864,2]
[426738215,1782769840000,-355.82859246,0.00024874,2]
[426738204,1782769840000,-323.03269281,0.00024864,2]
[426738207,1782769840000,-352.25721,0.00024864,2]
[426738210,1782769840000,-381.67078509,0.00024864,2]
[426738216,1782769840000,-228.68218607,0.00024874,2]
[426738213,1782769840000,-246.24831015,0.00024874,2]
[426738212,1782769840000,-242.64580948,0.00024864,2]
[426738214,1782769840000,-168.18124046,0.00024874,2]
[426738205,1782769840000,-354.79495073,0.00024864,2]
[426738217,1782769840000,-210.16474962,0.00024874,2]
[426738218,1782769840000,-213.75253608,0.00024874,2]
[426738229,1782769840000,-232.0,0.0002552,2]
[426738226,1782769840000,-170.0,0.00025,2]
[426738227,1782769840000,-501.0,0.00025181,11]
[426738224,1782769840000,-364.0,0.00025,2]
[426738222,1782769840000,-171.0,0.00025,2]
[426738225,1782769840000,-435.0,0.00025,2]
[426738219,1782769840000,-186.68336214,0.00024874,2]
[426738221,1782769840000,-154.46935744,0.00024967,2]
[426738220,1782769840000,-1653.0,0.00024887,5]
[426738228,1782769840000,-150.0,0.00025373,2]
[426738223,1782769840000,-252.0,0.00025,2]
[426738292,1782769841000,-521.5045869,0.00026252,2]
[426738302,1782769841000,-188.98369876,0.00026252,2]
[426738300,1782769841000,-158.27169699,0.00026252,2]
[426738299,1782769841000,-402.89917694,0.00026252,2]
[426738297,1782769841000,-314.63799586,0.00026252,2]
[426738295,1782769841000,-190.6418898,0.00026252,2]
[426738298,1782769841000,-172.23978973,0.00026252,2]
[426738294,1782769841000,-342.91394514,0.00026252,2]
[426738291,1782769841000,-505.55543466,0.00026252,2]
[426738293,1782769841000,-516.25532185,0.00026252,2]
[426738296,1782769841000,-167.70438469,0.00026252,2]
[426738301,1782769841000,-577.97070728,0.00026252,2]
[426738309,1782769841000,-174.19192964,0.00026252,2]
[426738307,1782769841000,-575.01016209,0.00026252,2]
[426738303,1782769841000,-333.14538841,0.00026252,2]
[426738306,1782769841000,-760.89294821,0.00026252,2]
[426738310,1782769841000,-402.11212022,0.00026252,2]
[426738305,1782769841000,-164.36863685,0.00026252,2]
[426738308,1782769841000,-704.06848304,0.00026252,2]
[426738311,1782769841000,-613.8343798,0.00026252,2]
[426738312,1782769841000,-421.9077245,0.0002626,2]
[426738321,1782769841000,-709.58990147,0.0002626,2]
[426738313,1782769841000,-498.49488941,0.0002626,2]
[426738287,1782769841000,-265.46981633,0.00026252,2]
[426738322,1782769841000,-656.78302965,0.0002626,2]
[426738304,1782769841000,-426.00662091,0.00026252,2]
[426738286,1782769841000,-214.24320267,0.00026252,2]
[426738272,1782769841000,-420.32949924,0.00025711,2]
[426738288,1782769841000,-170.80956639,0.00026252,2]
[426738314,1782769841000,-760.87703879,0.0002626,2]
[426738263,1782769841000,-303.68897573,0.00025701,2]
[426738261,1782769841000,-334.49992318,0.00025701,2]
[426738262,1782769841000,-572.50617763,0.00025701,2]
[426738265,1782769841000,-222.64013693,0.00025711,2]
[426738264,1782769841000,-485.29161897,0.00025701,2]
[426738267,1782769841000,-336.36248091,0.00025711,2]
[426738278,1782769841000,-232.17650111,0.00025711,2]
[426738266,1782769841000,-492.49662031,0.00025711,2]
[426738271,1782769841000,-203.4711664,0.00025711,2]
[426738277,1782769841000,-179.67430602,0.00025711,2]
[426738269,1782769841000,-457.36437215,0.00025711,2]
[426738289,1782769841000,-356.06240683,0.00026252,2]
[426738268,1782769841000,-533.74288869,0.00025711,2]
[426738275,1782769841000,-427.50507215,0.00025711,2]
[426738276,1782769841000,-373.36672428,0.00025711,2]
[426738274,1782769841000,-196.63089816,0.00025711,2]
[426738273,1782769841000,-247.820006,0.00025711,2]
[426738279,1782769841000,-501.0,0.00025964,11]
[426738280,1782769841000,-154.46935744,0.00026001,2]
[426738285,1782769841000,-167.98798287,0.00026252,2]
[426738282,1782769841000,-150.0,0.00026047,5]
[426738281,1782769841000,-429.57,0.00026027,7]
[426738284,1782769841000,-202.22522026,0.00026252,2]
[426738283,1782769841000,-650.51990026,0.00026252,2]
[426738290,1782769841000,-557.64243321,0.00026252,2]
[426738270,1782769841000,-160.10619299,0.00025711,2]
[426738320,1782769841000,-517.75229432,0.0002626,2]
[426738355,1782769841000,-150.0,0.00026849,2]
[426738316,1782769841000,-521.295317,0.0002626,2]
[426738352,1782769841000,-1002.70405178,0.00026818,2]
[426738349,1782769841000,-501.0,0.00026747,12]
[426738351,1782769841000,-880.0856038,0.0002681,2]
[426738353,1782769841000,-500.0,0.00026849,2]
[426738356,1782769841000,-500.0,0.00026849,2]
[426738357,1782769841000,-154.92925631,0.00026849,2]
[426738354,1782769841000,-500.0,0.00026849,2]
[426738358,1782769841000,-500.0,0.00026849,2]
[426738360,1782769841000,-500.0,0.00026849,2]
[426738359,1782769841000,-500.0,0.00026849,2]
[426738370,1782769841000,-500.0,0.00026849,2]
[426738363,1782769841000,-154.42815987,0.00026849,2]
[426738350,1782769841000,-813.14987532,0.0002681,2]
[426738362,1782769841000,-343.1176374,0.00026849,2]
[426738364,1782769841000,-500.0,0.00026849,2]
[426738367,1782769841000,-150.0,0.00026849,2]
[426738369,1782769841000,-238.08670734,0.00026849,2]
[426738365,1782769841000,-150.0,0.00026849,2]
[426738368,1782769841000,-500.0,0.00026849,2]
[426738371,1782769841000,-500.0,0.00026849,2]
[426738376,1782769841000,-500.0,0.00026849,2]
[426738374,1782769841000,-500.0,0.00026849,2]
[426738375,1782769841000,-500.0,0.00026849,2]
[426738373,1782769841000,-265.60185884,0.00026849,2]
[426738372,1782769841000,-500.0,0.00026849,2]
[426738315,1782769841000,-802.16324143,0.0002626,2]
[426738366,1782769841000,-500.0,0.00026849,2]
[426738343,1782769841000,-560.05008642,0.0002627,2]
[426738361,1782769841000,-621.15565481,0.00026849,2]
[426738345,1782769841000,-464.35300223,0.0002627,2]
[426738346,1782769841000,-215.74826821,0.0002633,2]
[426738318,1782769841000,-319.96830724,0.0002626,2]
[426738317,1782769841000,-531.50463862,0.0002626,2]
[426738335,1782769841000,-686.04655822,0.0002627,2]
[426738324,1782769841000,-185.53824093,0.0002626,2]
[426738334,1782769841000,-711.65718492,0.0002627,2]
[426738325,1782769841000,-645.13568367,0.0002626,2]
[426738331,1782769841000,-450.14327238,0.0002627,2]
[426738327,1782769841000,-763.34157018,0.0002626,2]
[426738333,1782769841000,-504.54372137,0.0002627,2]
[426738323,1782769841000,-704.51441999,0.0002626,2]
[426738326,1782769841000,-501.74988477,0.0002626,2]
[426738332,1782769841000,-738.74493046,0.0002627,2]
[426738328,1782769841000,-455.53346359,0.0002626,2]
[426738319,1782769841000,-479.16056053,0.0002626,2]
[426738344,1782769841000,-468.2108132,0.0002627,2]
[426738330,1782769841000,-445.28027385,0.0002627,2]
[426738336,1782769841000,-320.21238598,0.0002627,2]
[426738339,1782769841000,-630.49424886,0.0002627,2]
[426738348,1782769841000,-150.0,0.00026641,2]
[426738340,1782769841000,-393.26179633,0.0002627,2]
[426738338,1782769841000,-406.94233281,0.0002627,2]
[426738347,1782769841000,-319.54800603,0.0002633,2]
[426738329,1782769841000,-727.93742845,0.0002626,2]
[426738337,1782769841000,-208.93299555,0.0002627,2]
[426738341,1782769841000,-641.25760823,0.0002627,2]
[426738342,1782769841000,-359.34861204,0.0002627,2]
[426738416,1782769842000,-150.0,0.00026849,2]
[426738415,1782769842000,-500.0,0.00026849,2]
[426738418,1782769842000,-250.0,0.00026849,2]
[426738417,1782769842000,-500.0,0.00026849,2]
[426738414,1782769842000,-150.0,0.00026849,2]
[426738403,1782769842000,-500.0,0.00026849,2]
[426738411,1782769842000,-500.0,0.00026849,2]
[426738412,1782769842000,-150.0,0.00026849,2]
[426738409,1782769842000,-200.0,0.00026849,2]
[426738410,1782769842000,-150.0,0.00026849,2]
[426738419,1782769842000,-500.0,0.00026849,2]
[426738407,1782769842000,-500.0,0.00026849,2]
[426738413,1782769842000,-500.0,0.00026849,2]
[426738420,1782769842000,-218.20374736,0.00026849,2]
[426738421,1782769842000,-154.46935744,0.00027035,2]
[426738428,1782769842000,-3098.76,0.00027397,2]
[426738423,1782769842000,-200.0,0.00027101,2]
[426738425,1782769842000,-150.0,0.00027397,2]
[426738426,1782769842000,-1500.0,0.00027397,2]
[426738424,1782769842000,-373.03697452,0.00027397,2]
[426738427,1782769842000,-1828.0,0.00027397,2]
[426738430,1782769842000,-300.0,0.00027397,2]
[426738429,1782769842000,-1476.29,0.00027397,2]
[426738432,1782769842000,-22976.88,0.00027397,10]
[426738431,1782769842000,-1026.86,0.00027397,2]
[426738441,1782769842000,-1362.0,0.00027404,2]
[426738437,1782769842000,-257.29701076,0.00027397,2]
[426738422,1782769842000,-150.0,0.00027089,5]
[426738405,1782769842000,-150.0,0.00026849,2]
[426738380,1782769842000,-500.0,0.00026849,2]
[426738408,1782769842000,-555.05533822,0.00026849,2]
[426738439,1782769842000,-487.85,0.000274,7]
[426738378,1782769842000,-333.58952447,0.00026849,2]
[426738382,1782769842000,-301.62041916,0.00026849,2]
[426738379,1782769842000,-500.0,0.00026849,2]
[426738377,1782769842000,-500.0,0.00026849,2]
[426738381,1782769842000,-500.0,0.00026849,2]
[426738385,1782769842000,-500.0,0.00026849,2]
[426738383,1782769842000,-500.0,0.00026849,2]
[426738390,1782769842000,-500.0,0.00026849,2]
[426738394,1782769842000,-616.0,0.00026849,2]
[426738384,1782769842000,-509.56126523,0.00026849,2]
[426738386,1782769842000,-500.0,0.00026849,2]
[426738387,1782769842000,-500.0,0.00026849,2]
[426738389,1782769842000,-251.43799297,0.00026849,2]
[426738393,1782769842000,-500.0,0.00026849,2]
[426738391,1782769842000,-500.0,0.00026849,2]
[426738392,1782769842000,-500.0,0.00026849,2]
[426738388,1782769842000,-500.0,0.00026849,2]
[426738396,1782769842000,-500.0,0.00026849,2]
[426738397,1782769842000,-173.81676022,0.00026849,2]
[426738398,1782769842000,-500.0,0.00026849,2]
[426738402,1782769842000,-150.0,0.00026849,2]
[426738399,1782769842000,-500.0,0.00026849,2]
[426738395,1782769842000,-500.0,0.00026849,2]
[426738406,1782769842000,-150.0,0.00026849,2]
[426738400,1782769842000,-500.0,0.00026849,2]
[426738404,1782769842000,-500.0,0.00026849,2]
[426738401,1782769842000,-500.0,0.00026849,2]
[426738434,1782769842000,-372.76678006,0.00027397,2]
[426738470,1782769842000,-161.5,0.00027735,30]
[426738435,1782769842000,-559.15017009,0.00027397,2]
[426738466,1782769842000,-161.5,0.00027707,7]
[426738473,1782769842000,-563.03,0.00027744,7]
[426738469,1782769842000,-161.83,0.00027732,30]
[426738475,1782769842000,-161.83,0.00027761,2]
[426738472,1782769842000,-516.57,0.00027744,7]
[426738471,1782769842000,-516.57,0.00027742,7]
[426738497,1782769842000,-931.91695015,0.00027957,2]
[426738474,1782769842000,-563.03,0.00027747,7]
[426738479,1782769842000,-161.83,0.00027817,30]
[426738489,1782769842000,-516.57,0.00027899,2]
[426738483,1782769842000,-161.83,0.00027846,2]
[426738491,1782769842000,-563.03,0.00027901,2]
[426738477,1782769842000,-161.83,0.00027789,7]
[426738480,1782769842000,-161.5,0.0002782,30]
[426738486,1782769842000,-161.5,0.00027876,7]
[426738490,1782769842000,-516.57,0.00027901,2]
[426738488,1782769842000,-392.92,0.0002789,2]
[426738482,1782769842000,-232.0,0.0002784,2]
[426738481,1782769842000,-618.0,0.0002784,2]
[426738478,1782769842000,-161.5,0.00027792,7]
[426738487,1782769842000,-392.92,0.00027888,2]
[426738484,1782769842000,-161.5,0.00027848,2]
[426738492,1782769842000,-161.83,0.00027903,30]
[426738495,1782769842000,-161.83,0.00027931,2]
[426738496,1782769842000,-161.5,0.00027932,2]
[426738493,1782769842000,-161.5,0.00027904,30]
[426738485,1782769842000,-161.83,0.00027874,7]
[426738476,1782769842000,-161.5,0.00027763,2]
[426738494,1782769842000,-563.03,0.00027904,2]
[426738468,1782769842000,-392.92,0.00027731,7]
[426738467,1782769842000,-392.92,0.00027729,7]
[426738433,1782769842000,-186.38339003,0.00027397,2]
[426738436,1782769842000,-745.53356012,0.00027397,2]
[426738440,1782769842000,-3565.0,0.00027404,2]
[426738442,1782769842000,-1278.0,0.00027404,2]
[426738444,1782769842000,-1230.0,0.00027404,2]
[426738443,1782769842000,-295.0,0.00027404,2]
[426738447,1782769842000,-500.0,0.000275,7]
[426738445,1782769842000,-6087.0,0.00027404,2]
[426738451,1782769842000,-516.57,0.00027585,30]
[426738448,1782769842000,-501.0,0.0002753,13]
[426738449,1782769842000,-392.92,0.00027571,30]
[426738446,1782769842000,-218.791,0.00027404,2]
[426738452,1782769842000,-516.57,0.00027588,30]
[426738438,1782769842000,-362.88,0.000274,7]
[426738454,1782769842000,-563.03,0.00027591,30]
[426738450,1782769842000,-392.92,0.00027573,30]
[426738465,1782769842000,-161.83,0.00027704,7]
[426738461,1782769842000,-161.5,0.00027651,30]
[426738460,1782769842000,-161.83,0.00027647,30]
[426738463,1782769842000,-161.83,0.00027676,2]
[426738459,1782769842000,-1056.10272456,0.00027647,2]
[426738462,1782769842000,-914.79360973,0.00027666,2]
[426738455,1782769842000,-161.83,0.00027591,2]
[426738456,1782769842000,-161.5,0.00027595,2]
[426738453,1782769842000,-563.03,0.00027588,30]
[426738457,1782769842000,-161.83,0.00027619,7]
[426738464,1782769842000,-161.5,0.00027679,2]
[426738458,1782769842000,-161.5,0.00027623,7]
[426738539,1782769843000,-152.0,0.00028587,30]
[426738540,1782769843000,-431.0,0.00028605,30]
[426738550,1782769843000,-153.0,0.00028644,30]
[426738538,1782769843000,-157.0,0.00028587,30]
[426738537,1782769843000,-500.0,0.0002845,16]
[426738536,1782769843000,-501.0,0.00028313,13]
[426738535,1782769843000,-216.58458871,0.000283,7]
[426738534,1782769843000,-362.88,0.000283,7]
[426738532,1782769843000,-908.01,0.00028238,7]
[426738529,1782769843000,-516.57,0.00028215,7]
[426738542,1782769843000,-162.0,0.00028605,30]
[426738545,1782769843000,-235.0,0.00028644,30]
[426738543,1782769843000,-154.0,0.00028644,30]
[426738544,1782769843000,-171.0,0.00028644,30]
[426738549,1782769843000,-161.0,0.00028644,30]
[426738546,1782769843000,-153.0,0.00028644,30]
[426738533,1782769843000,-656.92,0.00028238,7]
[426738548,1782769843000,-350.0,0.00028644,30]
[426738547,1782769843000,-158.0,0.00028644,30]
[426738551,1782769843000,-1067.25921136,0.00028922,2]
[426738556,1782769843000,-150.0,0.00029372,2]
[426738552,1782769843000,-1208.60850225,0.00028973,2]
[426738553,1782769843000,-501.0,0.00029096,14]
[426738554,1782769843000,-154.46935744,0.00029103,2]
[426738541,1782769843000,-158.0,0.00028605,30]
[426738531,1782769843000,-563.03,0.00028217,7]
[426738526,1782769843000,-392.92,0.00028206,7]
[426738528,1782769843000,-516.57,0.00028213,7]
[426738555,1782769843000,-324.30939278,0.00029303,18]
[426738499,1782769843000,-161.5,0.00027961,7]
[426738498,1782769843000,-161.83,0.00027959,7]
[426738501,1782769843000,-161.83,0.00027988,30]
[426738504,1782769843000,-182.42091364,0.00028012,2]
[426738500,1782769843000,-150.0,0.00027973,2]
[426738503,1782769843000,-161.5,0.00027989,30]
[426738505,1782769843000,-161.83,0.00028016,2]
[426738507,1782769843000,-161.83,0.00028044,7]
[426738506,1782769843000,-161.5,0.00028017,2]
[426738518,1782769843000,-161.83,0.00028073,30]
[426738520,1782769843000,-161.5,0.00028101,2]
[426738510,1782769843000,-392.92,0.00028048,30]
[426738508,1782769843000,-161.5,0.00028045,7]
[426738509,1782769843000,-392.92,0.00028047,30]
[426738511,1782769843000,-516.57,0.00028056,30]
[426738515,1782769843000,-154.46935744,0.00028069,2]
[426738513,1782769843000,-563.03,0.00028058,30]
[426738514,1782769843000,-563.03,0.0002806,30]
[426738516,1782769843000,-161.5,0.00028073,30]
[426738512,1782769843000,-516.57,0.00028058,30]
[426738524,1782769843000,-487.85,0.000282,7]
[426738523,1782769843000,-161.84,0.0002813,7]
[426738522,1782769843000,-161.5,0.0002813,7]
[426738527,1782769843000,-392.92,0.00028207,7]
[426738530,1782769843000,-563.03,0.00028215,7]
[426738521,1782769843000,-161.83,0.00028101,2]
[426738561,1782769843000,-431.0,0.00029605,30]
[426738562,1782769843000,-164.0,0.00029605,30]
[426738588,1782769843000,-500.0,0.00030136,2]
[426738596,1782769843000,-500.0,0.00030136,2]
[426738592,1782769843000,-500.0,0.00030136,2]
[426738590,1782769843000,-500.0,0.00030136,2]
[426738595,1782769843000,-500.0,0.00030136,2]
[426738589,1782769843000,-500.0,0.00030136,2]
[426738593,1782769843000,-500.0,0.00030136,2]
[426738591,1782769843000,-500.0,0.00030136,2]
[426738594,1782769843000,-500.0,0.00030136,2]
[426738598,1782769843000,-500.0,0.00030136,2]
[426738605,1782769843000,-500.0,0.00030136,2]
[426738600,1782769843000,-500.0,0.00030136,2]
[426738604,1782769843000,-500.0,0.00030136,2]
[426738602,1782769843000,-500.0,0.00030136,2]
[426738601,1782769843000,-500.0,0.00030136,2]
[426738607,1782769843000,-298.64558948,0.00030137,2]
[426738599,1782769843000,-500.0,0.00030136,2]
[426738609,1782769843000,-154.46935744,0.00030137,2]
[426738608,1782769843000,-182.58,0.00030137,30]
[426738606,1782769843000,-526.60827864,0.00030136,2]
[426738610,1782769843000,-412.0,0.0003016,2]
[426738613,1782769843000,-3565.0,0.00030404,2]
[426738612,1782769843000,-12500.0,0.0003025,2]
[426738611,1782769843000,-154.0,0.0003016,2]
[426738557,1782769843000,-362.88,0.000294,7]
[426738586,1782769843000,-500.0,0.00030136,2]
[426738597,1782769843000,-500.0,0.00030136,2]
[426738603,1782769843000,-500.0,0.00030136,2]
[426738583,1782769843000,-500.0,0.00030136,2]
[426738587,1782769843000,-500.0,0.00030136,2]
[426738560,1782769843000,-152.0,0.00029587,30]
[426738559,1782769843000,-157.0,0.00029587,30]
[426738564,1782769843000,-154.0,0.00029644,30]
[426738574,1782769843000,-501.0,0.0002988,15]
[426738563,1782769843000,-162.0,0.00029605,30]
[426738565,1782769843000,-171.0,0.00029644,30]
[426738568,1782769843000,-158.0,0.00029644,30]
[426738567,1782769843000,-153.0,0.00029644,30]
[426738570,1782769843000,-161.0,0.00029644,30]
[426738569,1782769843000,-350.0,0.00029644,30]
[426738571,1782769843000,-153.0,0.00029644,30]
[426738572,1782769843000,-216.58458871,0.000297,30]
[426738558,1782769843000,-863.88344465,0.00029477,2]
[426738581,1782769843000,-22499.97,0.00030125,2]
[426738566,1782769843000,-235.0,0.00029644,30]
[426738576,1782769843000,-12499.99,0.0003,2]
[426738584,1782769843000,-500.0,0.00030136,2]
[426738579,1782769843000,-22500.0,0.0003,2]
[426738580,1782769843000,-500.0,0.00030124,7]
[426738585,1782769843000,-500.0,0.00030136,2]
[426738578,1782769843000,-12500.0,0.0003,2]
[426738577,1782769843000,-22500.0,0.0003,2]
[426738575,1782769843000,-3460.67,0.0003,2]
[426738573,1782769843000,-250.0,0.00029831,7]
[426738582,1782769843000,-500.0,0.00030136,2]
[426738652,1782769844000,-157.0,0.00031587,30]
[426738651,1782769844000,-951.96,0.00031507,120]
[426738653,1782769844000,-215.45,0.00031597,3]
[426738655,1782769844000,-162.0,0.00031605,30]
[426738654,1782769844000,-431.0,0.00031605,30]
[426738642,1782769844000,-154.46935744,0.00031171,2]
[426738649,1782769844000,-655.99000779,0.000315,2]
[426738648,1782769844000,-655.99000779,0.000315,2]
[426738647,1782769844000,-655.9900078,0.000315,2]
[426738656,1782769844000,-152.0,0.00031606,3]
[426738637,1782769844000,-501.0,0.00030663,15]
[426738650,1782769844000,-175.17389624,0.000315,2]
[426738662,1782769844000,-161.0,0.00031644,30]
[426738661,1782769844000,-350.0,0.00031644,30]
[426738664,1782769844000,-150.0,0.00031659,30]
[426738663,1782769844000,-153.0,0.00031644,30]
[426738657,1782769844000,-171.0,0.00031644,30]
[426738668,1782769844000,-501.0,0.00032229,17]
[426738667,1782769844000,-154.46935744,0.00032205,2]
[426738660,1782769844000,-158.0,0.00031644,30]
[426738658,1782769844000,-235.0,0.00031644,30]
[426738665,1782769844000,-150.0,0.00031963,30]
[426738666,1782769844000,-1046.7782,0.00032,2]
[426738670,1782769844000,-5947.43,0.00032232,7]
[426738681,1782769844000,-431.0,0.00032605,30]
[426738669,1782769844000,-223.54524297,0.00032229,6]
[426738659,1782769844000,-153.0,0.00031644,30]
[426738641,1782769844000,-150.0,0.0003105,30]
[426738614,1782769844000,-1362.0,0.00030404,2]
[426738635,1782769844000,-161.0,0.00030644,30]
[426738621,1782769844000,-279.98224209,0.00030411,60]
[426738622,1782769844000,-150.0,0.00030441,30]
[426738616,1782769844000,-283.0,0.00030404,2]
[426738617,1782769844000,-1230.0,0.00030404,2]
[426738615,1782769844000,-1278.0,0.00030404,2]
[426738619,1782769844000,-216.0,0.00030404,2]
[426738620,1782769844000,-161.45,0.00030411,120]
[426738618,1782769844000,-6087.0,0.00030404,2]
[426738631,1782769844000,-235.0,0.00030644,30]
[426738626,1782769844000,-362.88,0.000306,7]
[426738629,1782769844000,-155.0,0.00030644,30]
[426738624,1782769844000,-157.0,0.00030587,30]
[426738638,1782769844000,-150.0,0.00030746,30]
[426738672,1782769844000,-28860.28,0.00032232,7]
[426738627,1782769844000,-431.0,0.00030605,30]
[426738632,1782769844000,-153.0,0.00030644,30]
[426738630,1782769844000,-171.0,0.00030644,30]
[426738633,1782769844000,-158.0,0.00030644,30]
[426738625,1782769844000,-158.0,0.00030587,30]
[426738634,1782769844000,-350.0,0.00030644,30]
[426738646,1782769844000,-236.96,0.00031496,60]
[426738644,1782769844000,-501.0,0.00031446,16]
[426738645,1782769844000,-479.930466,0.00031464,7]
[426738643,1782769844000,-518.78,0.00031233,30]
[426738640,1782769844000,-1000.0,0.00031,7]
[426738636,1782769844000,-153.0,0.00030644,30]
[426738628,1782769844000,-162.0,0.00030605,30]
[426738673,1782769844000,-518.78,0.00032329,30]
[426738623,1782769844000,-10016.36,0.000305,2]
[426738675,1782769844000,-162.75471131,0.00032395,7]
[426738708,1782769844000,-1230.0,0.00033404,2]
[426738714,1782769844000,-1816.0,0.0003345,2]
[426738710,1782769844000,-216.0,0.00033404,2]
[426738716,1782769844000,-350.0,0.00033464,2]
[426738711,1782769844000,-518.78,0.00033425,30]
[426738712,1782769844000,-1151.0,0.0003345,5]
[426738709,1782769844000,-6087.0,0.00033404,2]
[426738715,1782769844000,-350.0,0.00033451,2]
[426738717,1782769844000,-663.0,0.00033474,5]
[426738713,1782769844000,-1000.0,0.0003345,39]
[426738719,1782769844000,-239.64847794,0.00033493,2]
[426738718,1782769844000,-1000.0,0.00033478,40]
[426738729,1782769844000,-300.0,0.00033506,2]
[426738721,1782769844000,-300.0,0.00033506,2]
[426738723,1782769844000,-536.77715252,0.00033506,2]
[426738720,1782769844000,-1000.0,0.00033505,40]
[426738730,1782769844000,-300.0,0.00033506,2]
[426738726,1782769844000,-302.16203863,0.00033506,2]
[426738725,1782769844000,-456.70750963,0.00033506,2]